[Event "Early-Titled-Tuesday-Blitz-June-18-2024"]
[Site "Chess.com"]
[Date "2024.06.18"]
[Round "5"]
[White "jaskol95"]
[Black "sokidze"]
[Result "1-0"]
[WhiteElo "2620"]
[BlackElo "2773"]
[TimeControl "180+1"]
[EndTime "8:59:14 PDT"]
[Termination "jaskol95 won by resignation"]

1. e4 {[%clk 0:03:00.9]} 1... c5 {[%clk 0:03:00.2]} 2. Nf3 {[%clk 0:03:00.7]}
2... Nc6 {[%clk 0:02:59.7]} 3. b4 {[%clk 0:03:01]} 3... cxb4 {[%clk 0:02:56]} 4.
d4 {[%clk 0:03:01.3]} 4... d5 {[%clk 0:02:54.3]} 5. exd5 {[%clk 0:03:01.3]} 5...
Qxd5 {[%clk 0:02:55]} 6. c4 {[%clk 0:03:01.9]} 6... Qe4+ {[%clk 0:02:17.4]} 7.
Be3 {[%clk 0:03:00.3]} 7... Bg4 {[%clk 0:02:08]} 8. Bd3 {[%clk 0:02:47.8]} 8...
Bxf3 {[%clk 0:01:49.5]} 9. gxf3 {[%clk 0:02:48.7]} 9... Qh4 {[%clk 0:01:49.2]}
10. d5 {[%clk 0:02:49.2]} 10... Ne5 {[%clk 0:01:48.6]} 11. Qa4+ {[%clk
0:02:48.3]} 11... Nd7 {[%clk 0:01:47.6]} 12. Nd2 {[%clk 0:02:37.4]} 12... Nf6
{[%clk 0:01:32.4]} 13. Ne4 {[%clk 0:02:13.2]} 13... Nxe4 {[%clk 0:00:55.6]} 14.
fxe4 {[%clk 0:02:13.6]} 14... Qf6 {[%clk 0:00:48.6]} 15. O-O {[%clk 0:02:04.1]}
15... g6 {[%clk 0:00:44.8]} 16. c5 {[%clk 0:01:30.5]} 16... Bg7 {[%clk
0:00:35.5]} 17. c6 {[%clk 0:01:25.2]} 17... bxc6 {[%clk 0:00:35.1]} 18. dxc6
{[%clk 0:01:26.1]} 18... O-O {[%clk 0:00:12.1]} 19. cxd7 {[%clk 0:01:25]} 19...
Qf3 {[%clk 0:00:12.4]} 20. Rfd1 {[%clk 0:01:10.7]} 20... Bxa1 {[%clk 0:00:08.8]}
21. Rxa1 {[%clk 0:01:10.7]} 21... Rfd8 {[%clk 0:00:07]} 22. Bb5 {[%clk
0:00:39.2]} 22... Qg4+ {[%clk 0:00:06.6]} 23. Kf1 {[%clk 0:00:37.4]} 23... Qh3+
{[%clk 0:00:06.7]} 24. Ke1 {[%clk 0:00:34.6]} 24... Qxh2 {[%clk 0:00:06.3]} 25.
Rd1 {[%clk 0:00:32.3]} 25... Qh1+ {[%clk 0:00:06.6]} 26. Ke2 {[%clk 0:00:30.5]}
26... Qxe4 {[%clk 0:00:07.2]} 27. Rd4 {[%clk 0:00:23.5]} 27... Qe5 {[%clk
0:00:04.6]} 28. Bc6 {[%clk 0:00:12.6]} 28... Rab8 {[%clk 0:00:04.7]} 29. Qxa7
{[%clk 0:00:13.3]} 29... b3 {[%clk 0:00:04]} 30. axb3 {[%clk 0:00:11.2]} 30...
Rxb3 {[%clk 0:00:04.2]} 31. Rd2 {[%clk 0:00:09.1]} 31... Rbb8 {[%clk 0:00:03]}
32. Qd4 {[%clk 0:00:05.1]} 32... Qh5+ {[%clk 0:00:02.6]} 33. Bf3 {[%clk
0:00:04.7]} 33... Qb5+ {[%clk 0:00:03.1]} 34. Ke1 {[%clk 0:00:04.6]} 34... Qb1+
{[%clk 0:00:02.6]} 35. Rd1 {[%clk 0:00:05.2]} 35... Qb5 {[%clk 0:00:02.6]} 36.
Be2 {[%clk 0:00:05]} 36... Qf5 {[%clk 0:00:02.1]} 37. Bh6 {[%clk 0:00:04.7]}
37... Qa5+ {[%clk 0:00:02.5]} 38. Kf1 {[%clk 0:00:04.9]} 38... e5 {[%clk
0:00:03]} 39. Qh4 {[%clk 0:00:04.3]} 39... Qb6 {[%clk 0:00:02.3]} 40. Be3 {[%clk
0:00:03.7]} 40... Qe6 {[%clk 0:00:02.3]} 41. Bg5 {[%clk 0:00:04.1]} 41... Rxd7
{[%clk 0:00:02.5]} 42. Re1 {[%clk 0:00:04]} 42... Re8 {[%clk 0:00:01.8]} 43. Bf6
{[%clk 0:00:04.2]} 43... g5 {[%clk 0:00:01.7]} 44. Qh6 {[%clk 0:00:04]} 44...
Qxf6 {[%clk 0:00:01.9]} 45. Qxf6 {[%clk 0:00:04.2]} 45... Re6 {[%clk 0:00:02.8]}
46. Qxg5+ {[%clk 0:00:04.5]} 46... Rg6 {[%clk 0:00:03.5]} 47. Qxe5 {[%clk
0:00:04.8]} 47... Re6 {[%clk 0:00:03]} 48. Qg5+ {[%clk 0:00:04.7]} 48... Rg6
{[%clk 0:00:03.3]} 49. Qf5 {[%clk 0:00:05.3]} 49... Rdd6 {[%clk 0:00:03.4]} 50.
Bf3 {[%clk 0:00:05.3]} 50... Rdf6 {[%clk 0:00:04]} 51. Qe4 {[%clk 0:00:03.9]}
51... Kg7 {[%clk 0:00:03.7]} 52. Bg2 {[%clk 0:00:04]} 52... Re6 {[%clk
0:00:03.8]} 53. Qd4+ {[%clk 0:00:03]} 53... Ref6 {[%clk 0:00:03.9]} 54. Re3
{[%clk 0:00:03.2]} 54... Kg8 {[%clk 0:00:04]} 55. Rg3 {[%clk 0:00:03.5]} 55...
Kg7 {[%clk 0:00:01.4]} 56. Rxg6+ {[%clk 0:00:03.3]} 56... Kxg6 {[%clk
0:00:01.5]} 57. Qg4+ {[%clk 0:00:03.7]} 57... Kh6 {[%clk 0:00:01.8]} 58. Be4
{[%clk 0:00:03.6]} 58... Re6 {[%clk 0:00:01.8]} 59. Qh4+ {[%clk 0:00:03.7]}
59... Kg7 {[%clk 0:00:02.5]} 60. Qxh7+ {[%clk 0:00:04.1]} 60... Kf6 {[%clk
0:00:03.4]} 61. Qf5+ {[%clk 0:00:04.5]} 61... Ke7 {[%clk 0:00:03.9]} 62. Qxe6+
{[%clk 0:00:05]} 62... Kxe6 {[%clk 0:00:04]} 63. Ke2 {[%clk 0:00:05.5]} 63...
Ke5 {[%clk 0:00:04.5]} 64. Ke3 {[%clk 0:00:06]} 64... f5 {[%clk 0:00:05]} 65.
f4+ {[%clk 0:00:06.3]} 65... Kf6 {[%clk 0:00:05.7]} 66. Bf3 {[%clk 0:00:06.7]}
1-0

[Event "Early-Titled-Tuesday-Blitz-June-18-2024"]
[Site "Chess.com"]
[Date "2024.06.18"]
[Round "5"]
[White "Aygehovit1992"]
[Black "dennisodessa"]
[Result "1/2-1/2"]
[WhiteElo "2793"]
[BlackElo "2605"]
[TimeControl "180+1"]
[EndTime "8:59:22 PDT"]
[Termination "Game drawn - insufficient material"]

1. e4 {[%clk 0:03:00.9]} 1... e6 {[%clk 0:02:52.7]} 2. d4 {[%clk 0:03:01.4]}
2... d5 {[%clk 0:02:24.9]} 3. Nc3 {[%clk 0:03:02.3]} 3... Bb4 {[%clk 0:02:19.5]}
4. Ne2 {[%clk 0:03:01.1]} 4... dxe4 {[%clk 0:02:09.6]} 5. a3 {[%clk 0:03:01.4]}
5... Be7 {[%clk 0:02:09.4]} 6. Nxe4 {[%clk 0:03:01.1]} 6... Nd7 {[%clk
0:02:09.7]} 7. Qd3 {[%clk 0:02:59.8]} 7... Ngf6 {[%clk 0:02:09.4]} 8. N4c3
{[%clk 0:02:55.4]} 8... O-O {[%clk 0:02:06.1]} 9. Bf4 {[%clk 0:02:44.6]} 9... c5
{[%clk 0:02:06.2]} 10. O-O-O {[%clk 0:02:12.2]} 10... cxd4 {[%clk 0:01:59.7]}
11. Qxd4 {[%clk 0:02:11.4]} 11... Qa5 {[%clk 0:01:55.7]} 12. Bd6 {[%clk
0:02:04.4]} 12... Bxd6 {[%clk 0:01:25.6]} 13. Qxd6 {[%clk 0:02:05.3]} 13... b5
{[%clk 0:01:25.4]} 14. Nd4 {[%clk 0:02:01.4]} 14... a6 {[%clk 0:01:17.6]} 15. g4
{[%clk 0:01:17.4]} 15... Bb7 {[%clk 0:01:09.2]} 16. Rg1 {[%clk 0:01:16.6]} 16...
Rfd8 {[%clk 0:00:47.6]} 17. Nb3 {[%clk 0:00:58.2]} 17... Qb6 {[%clk 0:00:44.2]}
18. g5 {[%clk 0:00:52.5]} 18... Qxf2 {[%clk 0:00:23.8]} 19. Bd3 {[%clk
0:00:20.6]} 19... Nd5 {[%clk 0:00:19.3]} 20. Ne4 {[%clk 0:00:20]} 20... Qf4+
{[%clk 0:00:18.7]} 21. Kb1 {[%clk 0:00:20.5]} 21... Qxd6 {[%clk 0:00:17.9]} 22.
Nxd6 {[%clk 0:00:21.4]} 22... Rab8 {[%clk 0:00:17.8]} 23. Na5 {[%clk 0:00:19.4]}
23... Ba8 {[%clk 0:00:17.6]} 24. Rg3 {[%clk 0:00:15]} 24... Nc5 {[%clk
0:00:16.3]} 25. Bxh7+ {[%clk 0:00:04.7]} 25... Kxh7 {[%clk 0:00:13]} 26. Nxf7
{[%clk 0:00:05.1]} 26... Rd7 {[%clk 0:00:06.8]} 27. g6+ {[%clk 0:00:04.6]} 27...
Kg8 {[%clk 0:00:07.4]} 28. Rh3 {[%clk 0:00:04.4]} 28... Rxf7 {[%clk 0:00:07.9]}
29. gxf7+ {[%clk 0:00:03.5]} 29... Kxf7 {[%clk 0:00:08.7]} 30. Rf1+ {[%clk
0:00:03.9]} 30... Nf6 {[%clk 0:00:09.2]} 31. Re3 {[%clk 0:00:02.4]} 31... Rd8
{[%clk 0:00:09.2]} 32. b3 {[%clk 0:00:02.2]} 32... Rd2 {[%clk 0:00:06.1]} 33.
Rc3 {[%clk 0:00:02.4]} 33... Ne4 {[%clk 0:00:02.7]} 34. Rc7+ {[%clk 0:00:03]}
34... Kg6 {[%clk 0:00:03.4]} 35. Rg1+ {[%clk 0:00:03.1]} 35... Kf5 {[%clk
0:00:02.9]} 36. Rgxg7 {[%clk 0:00:03.2]} 36... Rxh2 {[%clk 0:00:03.3]} 37. Ra7
{[%clk 0:00:02.5]} 37... Bd5 {[%clk 0:00:03.3]} 38. Rxa6 {[%clk 0:00:02.5]}
38... Nc3+ {[%clk 0:00:03.1]} 39. Kb2 {[%clk 0:00:02.9]} 39... Nfe4 {[%clk
0:00:03]} 40. Rf7+ {[%clk 0:00:02.8]} 40... Ke5 {[%clk 0:00:03.2]} 41. Nc6+
{[%clk 0:00:03.1]} 41... Bxc6 {[%clk 0:00:03.3]} 42. Rxc6 {[%clk 0:00:04]} 42...
Nd1+ {[%clk 0:00:03.3]} 43. Kc1 {[%clk 0:00:04.1]} 43... Nec3 {[%clk 0:00:03.1]}
44. Rf1 {[%clk 0:00:03.6]} 44... Kd4 {[%clk 0:00:01.8]} 45. Rxd1+ {[%clk
0:00:03.3]} 45... Nxd1 {[%clk 0:00:02.6]} 46. Kxd1 {[%clk 0:00:04.2]} 46... Rh1+
{[%clk 0:00:03.1]} 47. Kd2 {[%clk 0:00:04.6]} 47... Rh2+ {[%clk 0:00:03.7]} 48.
Kc1 {[%clk 0:00:05]} 48... e5 {[%clk 0:00:04.6]} 49. Rd6+ {[%clk 0:00:04.9]}
49... Kc5 {[%clk 0:00:04.9]} 50. Rd3 {[%clk 0:00:04.3]} 50... e4 {[%clk
0:00:04.7]} 51. Rd2 {[%clk 0:00:03.8]} 51... Rh1+ {[%clk 0:00:04.5]} 52. Rd1
{[%clk 0:00:04.3]} 52... Rh2 {[%clk 0:00:05]} 53. c3 {[%clk 0:00:04.1]} 53...
Ra2 {[%clk 0:00:04.6]} 54. Kb1 {[%clk 0:00:02.7]} 54... Rxa3 {[%clk 0:00:04.4]}
55. Kb2 {[%clk 0:00:03.3]} 55... Ra8 {[%clk 0:00:05.2]} 56. b4+ {[%clk 0:00:03]}
56... Kc6 {[%clk 0:00:05]} 57. Re1 {[%clk 0:00:01]} 57... Re8 {[%clk 0:00:05.9]}
58. Kc2 {[%clk 0:00:01.4]} 58... Kd5 {[%clk 0:00:06.4]} 59. Rd1+ {[%clk
0:00:01.4]} 59... Kc6 {[%clk 0:00:06.9]} 60. Re1 {[%clk 0:00:01.6]} 60... Kd5
{[%clk 0:00:07.1]} 61. Rd1+ {[%clk 0:00:01.8]} 61... Kc6 {[%clk 0:00:07]} 62.
Rd4 {[%clk 0:00:02.7]} 62... e3 {[%clk 0:00:06.2]} 63. Kd1 {[%clk 0:00:03.2]}
63... e2+ {[%clk 0:00:06]} 64. Ke1 {[%clk 0:00:03.7]} 64... Re3 {[%clk
0:00:06.9]} 65. c4 {[%clk 0:00:03.9]} 65... bxc4 {[%clk 0:00:07]} 66. Rxc4+
{[%clk 0:00:04.7]} 66... Kb5 {[%clk 0:00:07.9]} 67. Rc2 {[%clk 0:00:04.9]} 67...
Kxb4 {[%clk 0:00:08.4]} 68. Rxe2 {[%clk 0:00:05.8]} 68... Rxe2+ {[%clk
0:00:09.2]} 69. Kxe2 {[%clk 0:00:06.7]} 1/2-1/2

[Event "Early-Titled-Tuesday-Blitz-June-18-2024"]
[Site "Chess.com"]
[Date "2024.06.18"]
[Round "5"]
[White "Martial2008"]
[Black "Casper"]
[Result "0-1"]
[WhiteElo "2623"]
[BlackElo "2476"]
[TimeControl "180+1"]
[EndTime "8:59:24 PDT"]
[Termination "Casper won on time"]

1. d4 {[%clk 0:03:00.9]} 1... d5 {[%clk 0:02:59.4]} 2. Nf3 {[%clk 0:03:01.8]}
2... Bg4 {[%clk 0:02:59.4]} 3. Ne5 {[%clk 0:02:59.7]} 3... Bh5 {[%clk 0:02:58]}
4. g4 {[%clk 0:02:57.1]} 4... Bg6 {[%clk 0:02:58]} 5. h4 {[%clk 0:02:57.5]} 5...
f6 {[%clk 0:02:53.9]} 6. Nxg6 {[%clk 0:02:56.6]} 6... hxg6 {[%clk 0:02:54.8]} 7.
Qd3 {[%clk 0:02:56.1]} 7... Kf7 {[%clk 0:02:54.9]} 8. h5 {[%clk 0:02:55.7]} 8...
gxh5 {[%clk 0:02:51.7]} 9. gxh5 {[%clk 0:02:54.6]} 9... e6 {[%clk 0:02:42.2]}
10. c4 {[%clk 0:02:50.8]} 10... dxc4 {[%clk 0:02:38.3]} 11. Qxc4 {[%clk
0:02:48.9]} 11... Nc6 {[%clk 0:02:37.3]} 12. e3 {[%clk 0:02:46.7]} 12... Qd5
{[%clk 0:02:35.3]} 13. Qxd5 {[%clk 0:02:42.8]} 13... exd5 {[%clk 0:02:36.2]} 14.
Nc3 {[%clk 0:02:41.7]} 14... Bb4 {[%clk 0:02:35.2]} 15. Bd2 {[%clk 0:02:40.8]}
15... Nge7 {[%clk 0:02:34.3]} 16. Bg2 {[%clk 0:02:36]} 16... Rad8 {[%clk
0:02:17.1]} 17. Ke2 {[%clk 0:02:35.3]} 17... Rh7 {[%clk 0:02:15]} 18. Kd3 {[%clk
0:02:33.2]} 18... Ke6 {[%clk 0:02:01.7]} 19. a3 {[%clk 0:02:32]} 19... Bxc3
{[%clk 0:01:58.7]} 20. bxc3 {[%clk 0:02:31.6]} 20... Rdh8 {[%clk 0:01:59.4]} 21.
Bf3 {[%clk 0:02:27.3]} 21... Na5 {[%clk 0:01:59.8]} 22. e4 {[%clk 0:02:11.1]}
22... dxe4+ {[%clk 0:01:59.9]} 23. Kxe4 {[%clk 0:02:10.1]} 23... Nc4 {[%clk
0:01:59.9]} 24. Bf4 {[%clk 0:02:09.4]} 24... Nd5 {[%clk 0:01:57.8]} 25. Rhe1
{[%clk 0:02:00.5]} 25... Nxf4 {[%clk 0:01:45.8]} 26. Kxf4+ {[%clk 0:01:59.3]}
26... Kd7 {[%clk 0:01:46.5]} 27. Rg1 {[%clk 0:01:44.4]} 27... c6 {[%clk
0:01:43.6]} 28. Rg6 {[%clk 0:01:42.1]} 28... Ke6 {[%clk 0:01:29.3]} 29. Rag1
{[%clk 0:01:33.6]} 29... Kf7 {[%clk 0:01:29]} 30. h6 {[%clk 0:01:31.7]} 30...
gxh6 {[%clk 0:01:25.9]} 31. Bh5 {[%clk 0:01:31.4]} 31... Ke7 {[%clk 0:01:24.5]}
32. Re1+ {[%clk 0:01:29.8]} 32... Kd7 {[%clk 0:01:13.9]} 33. Rxf6 {[%clk
0:01:27.3]} 33... Nxa3 {[%clk 0:01:14.1]} 34. Ra1 {[%clk 0:01:19.5]} 34... Nb5
{[%clk 0:01:12.1]} 35. c4 {[%clk 0:01:14.6]} 35... Nxd4 {[%clk 0:01:12.2]} 36.
Rxa7 {[%clk 0:01:13.9]} 36... Kc7 {[%clk 0:00:59.1]} 37. Ra1 {[%clk 0:01:06.3]}
37... Rf8 {[%clk 0:00:51.7]} 38. Rxf8 {[%clk 0:01:01]} 38... Ne6+ {[%clk
0:00:52.2]} 39. Kf5 {[%clk 0:00:55.7]} 39... Nxf8 {[%clk 0:00:53.1]} 40. f4
{[%clk 0:00:56]} 40... Re7 {[%clk 0:00:46.7]} 41. Kf6 {[%clk 0:00:46.5]} 41...
Re4 {[%clk 0:00:37.6]} 42. f5 {[%clk 0:00:45.4]} 42... Rxc4 {[%clk 0:00:33.6]}
43. Kg7 {[%clk 0:00:40.3]} 43... Nd7 {[%clk 0:00:33.8]} 44. f6 {[%clk
0:00:27.8]} 44... Rf4 {[%clk 0:00:29.6]} 45. f7 {[%clk 0:00:25]} 45... b5 {[%clk
0:00:26.5]} 46. Rg1 {[%clk 0:00:07.3]} 46... c5 {[%clk 0:00:23.9]} 47. Bg4
{[%clk 0:00:07.5]} 47... Ne5 {[%clk 0:00:18.9]} 48. f8=Q {[%clk 0:00:07.1]}
48... Rxf8 {[%clk 0:00:13.9]} 49. Kxf8 {[%clk 0:00:08]} 49... Nxg4 {[%clk
0:00:11.5]} 50. Rxg4 {[%clk 0:00:07.7]} 50... Kd6 {[%clk 0:00:12.2]} 51. Kf7
{[%clk 0:00:07.8]} 51... b4 {[%clk 0:00:11.6]} 52. Kf6 {[%clk 0:00:07.7]} 52...
Kd5 {[%clk 0:00:11.7]} 53. Kf5 {[%clk 0:00:06.8]} 53... b3 {[%clk 0:00:10.1]}
54. Rg1 {[%clk 0:00:06.3]} 54... c4 {[%clk 0:00:09.7]} 55. Rd1+ {[%clk
0:00:05.1]} 55... Kc5 {[%clk 0:00:09.9]} 56. Ke4 {[%clk 0:00:05.6]} 56... h5
{[%clk 0:00:03.2]} 57. Ke3 {[%clk 0:00:03.7]} 57... Kb4 {[%clk 0:00:02.9]} 58.
Kd2 {[%clk 0:00:04]} 58... c3+ {[%clk 0:00:02.4]} 59. Kc1 {[%clk 0:00:04.6]}
59... Ka3 {[%clk 0:00:01.1]} 60. Rd8 {[%clk 0:00:01.9]} 60... h4 {[%clk
0:00:01]} 61. Ra8+ {[%clk 0:00:01.3]} 61... Kb4 {[%clk 0:00:01.7]} 62. Rh8
{[%clk 0:00:02]} 62... Ka3 {[%clk 0:00:02.1]} 63. Kb1 {[%clk 0:00:01.7]} 63...
c2+ {[%clk 0:00:02.4]} 64. Kc1 {[%clk 0:00:02.3]} 64... h3 {[%clk 0:00:02.4]}
65. Ra8+ {[%clk 0:00:01.8]} 65... Kb4 {[%clk 0:00:02]} 66. Rh8 {[%clk
0:00:02.7]} 66... Ka3 {[%clk 0:00:02.6]} 67. Rxh3 {[%clk 0:00:02]} 67... Ka2
{[%clk 0:00:02.9]} 0-1

[Event "Early-Titled-Tuesday-Blitz-June-18-2024"]
[Site "Chess.com"]
[Date "2024.06.18"]
[Round "5"]
[White "bubeliang"]
[Black "DishonorOnYourCow"]
[Result "1-0"]
[WhiteElo "2795"]
[BlackElo "2524"]
[TimeControl "180+1"]
[EndTime "8:59:26 PDT"]
[Termination "bubeliang won by checkmate"]

1. b3 {[%clk 0:03:00.9]} 1... d5 {[%clk 0:02:57.7]} 2. Bb2 {[%clk 0:03:01.8]}
2... c5 {[%clk 0:02:58]} 3. e3 {[%clk 0:03:00.8]} 3... Nc6 {[%clk 0:02:58.4]} 4.
Nf3 {[%clk 0:02:57.6]} 4... Nf6 {[%clk 0:02:58.9]} 5. Bb5 {[%clk 0:02:56.6]}
5... Bd7 {[%clk 0:02:57.1]} 6. O-O {[%clk 0:02:54.9]} 6... g6 {[%clk 0:02:54.4]}
7. Bxf6 {[%clk 0:02:51.5]} 7... exf6 {[%clk 0:02:54.3]} 8. d4 {[%clk 0:02:52.1]}
8... cxd4 {[%clk 0:02:51.3]} 9. exd4 {[%clk 0:02:46.4]} 9... Bd6 {[%clk
0:02:47.8]} 10. Re1+ {[%clk 0:02:45.7]} 10... Be6 {[%clk 0:02:46.3]} 11. g3
{[%clk 0:02:36.5]} 11... O-O {[%clk 0:02:45]} 12. Bf1 {[%clk 0:02:32.3]} 12...
Rc8 {[%clk 0:02:40.3]} 13. c4 {[%clk 0:02:27.8]} 13... b6 {[%clk 0:02:28]} 14.
Bg2 {[%clk 0:02:23.5]} 14... Bb4 {[%clk 0:02:22.8]} 15. cxd5 {[%clk 0:01:33]}
15... Bxd5 {[%clk 0:02:12.8]} 16. Rf1 {[%clk 0:01:08.9]} 16... Bxf3 {[%clk
0:02:08.9]} 17. Bxf3 {[%clk 0:01:09.8]} 17... Nxd4 {[%clk 0:02:08.7]} 18. a3
{[%clk 0:01:05.9]} 18... Bc3 {[%clk 0:01:50]} 19. Ra2 {[%clk 0:00:58.5]} 19...
Re8 {[%clk 0:01:28.9]} 20. Bg2 {[%clk 0:00:54.1]} 20... Nf5 {[%clk 0:01:05.2]}
21. Nxc3 {[%clk 0:00:46.1]} 21... Rxc3 {[%clk 0:01:04.6]} 22. Rd2 {[%clk
0:00:46.5]} 22... Qe7 {[%clk 0:01:02.9]} 23. Rd7 {[%clk 0:00:21.8]} 23... Qxa3
{[%clk 0:00:39.9]} 24. Bd5 {[%clk 0:00:22.2]} 24... Rf8 {[%clk 0:00:38.9]} 25.
Bc4 {[%clk 0:00:16.9]} 25... b5 {[%clk 0:00:32.1]} 26. Bd5 {[%clk 0:00:09.8]}
26... Qc5 {[%clk 0:00:27.7]} 27. Qd2 {[%clk 0:00:05.9]} 27... Rc2 {[%clk
0:00:22.9]} 28. Qf4 {[%clk 0:00:04.2]} 28... Kg7 {[%clk 0:00:12]} 29. Be4 {[%clk
0:00:04.1]} 29... Nh6 {[%clk 0:00:10.9]} 30. Rd6 {[%clk 0:00:02.9]} 30... Re2
{[%clk 0:00:02.7]} 31. Qxf6+ {[%clk 0:00:02.6]} 31... Kg8 {[%clk 0:00:03.1]} 32.
Bf3 {[%clk 0:00:02.9]} 32... Ree8 {[%clk 0:00:02]} 33. Rfd1 {[%clk 0:00:02.4]}
33... Nf5 {[%clk 0:00:02.6]} 34. Rd7 {[%clk 0:00:02.2]} 34... Qe5 {[%clk
0:00:01.8]} 35. Qxe5 {[%clk 0:00:02.5]} 35... Rxe5 {[%clk 0:00:02.7]} 36. Rxa7
{[%clk 0:00:02.7]} 36... Rfe8 {[%clk 0:00:02.6]} 37. Rdd7 {[%clk 0:00:03.2]}
37... Re1+ {[%clk 0:00:02.8]} 38. Kg2 {[%clk 0:00:02.2]} 38... R1e7 {[%clk
0:00:03.7]} 39. Bd5 {[%clk 0:00:01.7]} 39... Kf8 {[%clk 0:00:01.5]} 40. Rdc7
{[%clk 0:00:01.1]} 40... Rxc7 {[%clk 0:00:01.5]} 41. Rxc7 {[%clk 0:00:02]} 41...
Re7 {[%clk 0:00:02.3]} 42. Rc8+ {[%clk 0:00:02.7]} 42... Kg7 {[%clk 0:00:02.6]}
43. Rb8 {[%clk 0:00:03]} 43... Rd7 {[%clk 0:00:02.9]} 44. Bc6 {[%clk 0:00:03]}
44... Rd2 {[%clk 0:00:02.9]} 45. Rxb5 {[%clk 0:00:03]} 45... Rb2 {[%clk
0:00:02.8]} 46. Rb6 {[%clk 0:00:03.3]} 46... Ne3+ {[%clk 0:00:02.9]} 47. Kf3
{[%clk 0:00:02.7]} 47... Nd1 {[%clk 0:00:03.8]} 48. Bd5 {[%clk 0:00:02.6]} 48...
Rxf2+ {[%clk 0:00:03.8]} 49. Ke4 {[%clk 0:00:03]} 49... Nc3+ {[%clk 0:00:01.9]}
50. Kd4 {[%clk 0:00:03.5]} 50... Rd2+ {[%clk 0:00:01.9]} 51. Kxc3 {[%clk
0:00:03.6]} 51... Rxd5 {[%clk 0:00:02.2]} 52. b4 {[%clk 0:00:04.3]} 52... Rd1
{[%clk 0:00:02.1]} 53. b5 {[%clk 0:00:04.7]} 53... Rc1+ {[%clk 0:00:02.4]} 54.
Kb4 {[%clk 0:00:05]} 54... Rb1+ {[%clk 0:00:02.8]} 55. Kc5 {[%clk 0:00:05.5]}
55... Rb2 {[%clk 0:00:03.2]} 56. Rd6 {[%clk 0:00:06]} 56... Rxh2 {[%clk
0:00:03.2]} 57. b6 {[%clk 0:00:06.6]} 57... Rc2+ {[%clk 0:00:03.6]} 58. Kb5
{[%clk 0:00:06.6]} 58... Rb2+ {[%clk 0:00:04]} 59. Kc6 {[%clk 0:00:07.2]} 59...
h5 {[%clk 0:00:04]} 60. b7 {[%clk 0:00:07.7]} 60... g5 {[%clk 0:00:02.2]} 61.
Rd5 {[%clk 0:00:08.1]} 61... Rc2+ {[%clk 0:00:01.7]} 62. Rc5 {[%clk 0:00:06.2]}
62... Rb2 {[%clk 0:00:01.5]} 63. Rb5 {[%clk 0:00:06.8]} 63... Rc2+ {[%clk
0:00:01.9]} 64. Kb6 {[%clk 0:00:07.4]} 64... Re2 {[%clk 0:00:01.3]} 65. b8=Q
{[%clk 0:00:07.7]} 65... Re6+ {[%clk 0:00:01.8]} 66. Kc5 {[%clk 0:00:07.8]}
66... Kg6 {[%clk 0:00:02.7]} 67. Kd4 {[%clk 0:00:08.3]} 67... h4 {[%clk
0:00:01.6]} 68. Qg8+ {[%clk 0:00:08.3]} 68... Kf6 {[%clk 0:00:01]} 69. Qxg5#
{[%clk 0:00:09.2]} 1-0